[Event "Czech Youth U14 Boys 2024"]
[Site "Kouty nad Desnou"]
[Date "2024.03.15"]
[Round "8.1"]
[White "Martirosyan, David"]
[Black "Soucek, Andrej"]
[Result "1/2-1/2"]
[ECO "A20"]
[WhiteElo "1981"]
[BlackElo "1825"]
[Annotator "RC"]
[PlyCount "142"]
[EventDate "2024.03.10"]
[EventType "swiss"]
[EventCountry "CZE"]
[SourceTitle "playchess.com"]
[Source "ChessBase"]
[SourceQuality "1"]
[TimeControl "40/5400+30:1800+30"]

1. c4 {[%emt 0:00:16]} e5 {[%emt 0:01:11]} 2. d3 {[%emt 0:00:08]} Nc6 {[%emt 0:00:32]} 3. Nf3 {[%emt 0:00:38]} Nf6 {[%emt 0:00:32]} 4. a3 {[%emt 0:01:04]} a5 {[%emt 0:02:00]} 5. g3 {[%emt 0:03:14]} d5 {[%emt 0:01:49]} 6. cxd5 {[%emt 0:00:29]} Nxd5 {[%emt 0:00:13]} 7. Bg2 {[%emt 0:00:14]} Be7 {[%emt 0:00:51]} 8. O-O {[%emt 0:01:49]} O-O {[%emt 0:01:24]} 9. Bd2 {[%emt 0:04:11]} Be6 {[%emt 0:01:20]} 10. Qa4 {[%emt 0:03:11]} f6 {[%emt 0:07:21]} 11. Nc3 {[%emt 0:02:13]} Nb6 {[%emt 0:06:33]} 12. Qd1 {[%emt 0:03:53]} a4 {[%emt 0:00:54]} 13. Be3 {[%emt 0:02:50]} Bb3 {[%emt 0:05:34]} 14. Qc1 {[%emt 0:01:13]} Na5 {[%emt 0:14:11]} 15. Nd2 {[%emt 0:02:29]} c6 {[%emt 0:01:08]} 16. Nce4 {[%emt 0:06:36]} Nd5 {[%emt 0:04:43]} 17. Bc5 {[%emt 0:01:53]} b6 {[%emt 0:04:55]} 18. Bxe7 {[%emt 0:03:05]} Nxe7 {[%emt 0:00:27]} 19. Nxb3 Nxb3 {[%emt 0:00:33]} 20. Qc4+ {[%emt 0:05:55]} Kh8 {[%emt 0:05:19]} 21. Rad1 {[%emt 0:02:23]} b5 {[%emt 0:07:00]} 22. Qc3 {[%emt 0:01:29]} Nd5 {[%emt 0:05:26]} 23. Qxc6 {[%emt 0:11:10]} Nd4 {[%emt 0:00:08]} 24. Qd6 {[%emt 0:06:08]} Nxe2+ {[%emt 0:01:30]} 25. Kh1 {[%emt 0:00:04]} Nd4 {[%emt 0:06:49]} 26. Rc1 {[%emt 0:03:13]} Qxd6 {[%emt 0:07:36]} 27. Nxd6 {[%emt 0:00:27]} Rad8 {[%emt 0:00:03]} 28. Nb7 {[%emt 0:13:25]} Rd7 {[%emt 0:00:07]} 29. Rc5 {[%emt 0:01:01]} Rxb7 {[%emt 0:01:26]} 30. Rxd5 {[%emt 0:00:30]} Rbb8 {[%emt 0:00:36]} 31. f4 {[%emt 0:01:59]} Rfd8 {[%emt 0:02:00]} 32. fxe5 {[%emt 0:02:28]} Rxd5 {[%emt 0:00:08]} 33. Bxd5 {[%emt 0:00:13]} fxe5 {[%emt 0:00:29]} 34. Re1 {[%emt 0:04:39]} Re8 {[%emt 0:00:11]} 35. Bf7 {[%emt 0:01:51]} Re7 {[%emt 0:00:24]} 36. Rc1 {[%emt 0:00:59]} g6 {[%emt 0:00:29]} 37. Rc8+ {[%emt 0:01:25]} Kg7 {[%emt 0:01:29]} 38. Bd5 {[%emt 0:00:34]} Rd7 {[%emt 0:02:42]} 39. Be4 {[%emt 0:01:23]} h6 {[%emt 0:01:14]} 40. Kg2 {[%emt 0:01:48]} g5 {[%emt 0:02:03]} 41. Rb8 {[%emt 0:08:29]} Rc7 {[%emt 0:02:32]} 42. Rb7 {[%emt 0:00:07]} Rxb7 {[%emt 0:00:03]} 43. Bxb7 {[%emt 0:00:06]} Kf6 {[%emt 0:01:03]} 44. Kf2 {[%emt 0:00:47]} Kf5 {[%emt 0:02:27]} 45. Bc8+ {[%emt 0:01:25]} Kf6 {[%emt 0:00:12]} 46. Ke3 {[%emt 0:02:44]} Ke7 {[%emt 0:01:50]} 47. Ke4 {[%emt 0:04:12]} Kd6 {[%emt 0:00:04]} 48. Bg4 {[%emt 0:03:55]} Nc2 {[%emt 0:08:08]} 49. Bd1 {[%emt 0:00:31]} Nd4 {[%emt 0:02:34]} 50. h3 {[%emt 0:00:26]} Ke6 {[%emt 0:01:39]} 51. Bh5 {[%emt 0:00:35]} Nc2 {[%emt 0:02:21]} 52. Bf3 {[%emt 0:08:11]} Nd4 {[%emt 0:03:49]} 53. Bg4+ {[%emt 0:00:41]} Kd6 {[%emt 0:01:33]} 54. Bc8 {[%emt 0:04:34]} Nc2 {[%emt 0:02:10]} 55. Bg4 {[%emt 0:01:23]} Nd4 {[%emt 0:00:10]} 56. h4 {[%emt 0:00:49]} gxh4 {[%emt 0:07:21]} 57. gxh4 {[%emt 0:00:07]} Nc2 {[%emt 0:00:04]} 58. Bh3 {[%emt 0:02:42]} b4 {[%emt 0:01:15]} 59. axb4 {[%emt 0:01:12]} Nxb4 {[%emt 0:00:07]} 60. Bg4 {[%emt 0:00:56]} Na6 {[%emt 0:02:01]} 61. d4 {[%emt 0:02:32]} exd4 {[%emt 0:01:14]} 62. Kxd4 {[%emt 0:00:09]} Nc5 {[%emt 0:02:42]} 63. Bf3 {[%emt 0:01:02]} Nb3+ {[%emt 0:00:32]} 64. Kc3 {[%emt 0:00:04]} Nc5 {[%emt 0:00:34]} 65. Be2 {[%emt 0:00:22]} Kd5 {[%emt 0:01:51]} 66. Kb4 {[%emt 0:00:45]} Kd4 {[%emt 0:00:46]} 67. Bb5 {[%emt 0:00:49]} Kd5 {[%emt 0:00:24]} 68. Bc4+ {[%emt 0:01:06]} Kc6 {[%emt 0:00:46]} 69. Bb5+ {[%emt 0:00:29]} Kd5 {[%emt 0:00:06]} 70. Bxa4 {[%emt 0:00:08]} Nd3+ {[%emt 0:00:05]} 71. Kc3 {[%emt 0:00:13]} Nxb2 {[%emt 0:00:08]} 1/2-1/2

[Event "Czech Youth U14 Boys 2024"]
[Site "Kouty nad Desnou"]
[Date "2024.03.15"]
[Round "8.2"]
[White "Vana, Jan"]
[Black "Topencik, Bruno"]
[Result "0-1"]
[ECO "B14"]
[WhiteElo "1908"]
[BlackElo "2006"]
[Annotator "RC"]
[PlyCount "100"]
[EventDate "2024.03.10"]
[EventType "swiss"]
[EventCountry "CZE"]
[SourceTitle "playchess.com"]
[Source "ChessBase"]
[SourceQuality "1"]
[TimeControl "40/5400+30:1800+30"]

1. e4 {[%emt 0:01:15]} c6 {[%emt 0:00:25]} 2. d4 {[%emt 0:00:11]} d5 {[%emt 0:00:06]} 3. exd5 {[%emt 0:00:03]} cxd5 {[%emt 0:00:07]} 4. c4 {[%emt 0:00:03]} Nf6 {[%emt 0:01:13]} 5. Nc3 {[%emt 0:00:05]} g6 {[%emt 0:00:56]} 6. cxd5 {[%emt 0:02:12]} Bg7 {[%emt 0:01:16]} 7. Bc4 {[%emt 0:01:50]} O-O {[%emt 0:02:32]} 8. Nf3 {[%emt 0:04:15]} Nbd7 {[%emt 0:02:20]} 9. O-O {[%emt 0:02:22]} Nb6 {[%emt 0:02:31]} 10. Bb3 {[%emt 0:11:48]} Nbxd5 {[%emt 0:04:44]} 11. Re1 {[%emt 0:04:47]} Bg4 {[%emt 0:15:20]} 12. h3 {[%emt 0:15:33]} Bxf3 {[%emt 0:03:48]} 13. Qxf3 {[%emt 0:01:29]} Nxc3 {[%emt 0:02:49]} 14. bxc3 {[%emt 0:04:07]} Qd7 {[%emt 0:02:30]} 15. Ba3 {[%emt 0:22:19]} Rfe8 {[%emt 0:02:56]} 16. Rab1 {[%emt 0:05:29]} e6 {[%emt 0:03:49]} 17. Bb2 {[%emt 0:09:39]} b5 {[%emt 0:04:55]} 18. Bc1 {[%emt 0:05:41]} Nd5 {[%emt 0:04:26]} 19. Bxd5 {[%emt 0:02:18]} exd5 {[%emt 0:00:55]} 20. Ba3 {[%emt 0:01:29]} a6 {[%emt 0:02:50]} 21. Kf1 {[%emt 0:02:40]} Qc6 {[%emt 0:05:06]} 22. Qd3 {[%emt 0:00:51]} Qc7 {[%emt 0:00:19]} 23. Kg1 {[%emt 0:01:01]} Qa5 {[%emt 0:03:45]} 24. Bb4 {[%emt 0:00:31]} Qxa2 {[%emt 0:04:00]} 25. Rxe8+ {[%emt 0:00:29]} Rxe8 {[%emt 0:00:08]} 26. Qf1 {[%emt 0:00:31]} Qe2 {[%emt 0:08:29]} 27. Ra1 {[%emt 0:00:30]} Qxf1+ {[%emt 0:00:19]} 28. Kxf1 {[%emt 0:00:01]} Re6 {[%emt 0:00:17]} 29. Re1 {[%emt 0:00:58]} Rxe1+ {[%emt 0:02:19]} 30. Kxe1 {[%emt 0:00:01]} Bf8 {[%emt 0:00:16]} 31. Ba5 {[%emt 0:00:14]} Bd6 {[%emt 0:01:21]} 32. Ke2 {[%emt 0:00:19]} Kf8 {[%emt 0:00:38]} 33. Kf3 {[%emt 0:01:06]} Ke8 {[%emt 0:02:42]} 34. Kg4 {[%emt 0:00:43]} h6 {[%emt 0:00:22]} 35. h4 {[%emt 0:00:39]} f5+ {[%emt 0:03:17]} 36. Kf3 {[%emt 0:00:26]} h5 {[%emt 0:01:54]} 37. Ke3 {[%emt 0:00:26]} Kd7 {[%emt 0:00:09]} 38. f4 {[%emt 0:00:26]} Kc6 {[%emt 0:00:15]} 39. g3 {[%emt 0:00:30]} b4 {[%emt 0:01:13]} 40. cxb4 {[%emt 0:00:37]} Kb5 {[%emt 0:00:15]} 41. Kd3 {[%emt 0:02:54]} Bxb4 {[%emt 0:00:13]} 42. Bd8 {[%emt 0:00:53]} Be1 {[%emt 0:02:43]} 43. Bg5 {[%emt 0:00:33]} Kb4 {[%emt 0:02:12]} 44. Ke2 {[%emt 0:00:57]} Bxg3 {[%emt 0:00:50]} 45. Kf3 {[%emt 0:00:05]} Be1 {[%emt 0:00:13]} 46. Ke2 {[%emt 0:00:08]} Bc3 {[%emt 0:00:07]} 47. Kd3 Kb3 {[%emt 0:00:14]} 48. Be7 {[%emt 0:00:17]} a5 {[%emt 0:00:00]} 49. Bc5 a4 {[%emt 0:00:15]} 50. Ba3 {[%emt 0:01:08]} Bb4 0-1

[Event "Czech Youth U14 Boys 2024"]
[Site "Kouty nad Desnou"]
[Date "2024.03.15"]
[Round "8.3"]
[White "Kroulik, Vaclav"]
[Black "Popov, Roman"]
[Result "1/2-1/2"]
[ECO "E11"]
[WhiteElo "1936"]
[BlackElo "2353"]
[Annotator "TA"]
[PlyCount "123"]
[EventDate "2024.03.10"]
[EventType "swiss"]
[EventCountry "CZE"]
[SourceTitle "playchess.com"]
[Source "ChessBase"]
[SourceQuality "1"]
[TimeControl "40/5400+30:1800+30"]

{[%evp 11,123,17,37,28,38,0,13,8,16,9,25,20,32,26,29,20,24,27,83,83,93,88,106,72,78,77,77,70,74,62,52,56,66,38,44,39,37,40,63,60,56,55,114,114,139,130,153,136,185,183,184,164,170,178,172,182,170,175,234,212,194,120,203,135,243,0,0,-60,-60,-44,-29,-517,-520,-525,-524,-472,-435,-565,-591,-563,-147,-584,-462,-191,0,0,0,0,0,0,0,0,0,0,0,0,0,0,0,0,0,0,0,0,0,0,0,0,0,0,0,0,0,0]} 1. d4 {[%emt 0:00:06]} Nf6 {[%emt 0:00:22]} 2. c4 {[%emt 0:00:30]} e6 {[%emt 0:00:14]} 3. Nf3 {[%emt 0:00:21]} Bb4+ {[%emt 0:00:07]} 4. Nbd2 {[%emt 0:00:24]} O-O {[%emt 0:02:16]} 5. a3 {[%emt 0:00:32]} Bxd2+ {[%emt 0:01:12]} 6. Qxd2 {[%emt 0:00:14]} d6 {[%emt 0:03:16]} 7. e3 {[%emt 0:04:14]} Qe7 {[%emt 0:00:31]} 8. Be2 {[%emt 0:02:07]} e5 {[%emt 0:04:04]} 9. Qc3 {[%emt 0:08:51]} Nc6 {[%emt 0:14:06]} 10. dxe5 {[%emt 0:09:05]} Nxe5 {[%emt 0:08:40]} 11. Nxe5 {[%emt 0:05:49]} dxe5 {[%emt 0:00:54]} 12. O-O {[%emt 0:03:09]} Bf5 {[%emt 0:03:58]} 13. b4 {[%emt 0:05:29]} Ne4 {[%emt 0:02:32]} 14. Qb2 {[%emt 0:06:11]} (14. Qe1 {is more complex.} Qg5 15. Kh1 Qh4 16. f3) 14... Bg6 {[%emt 0:16:47]} (14... Nf6 $11 {remains equal.}) 15. f3 $16 {[%emt 0:03:39]} Nf6 {[%emt 0:12:09][%cal Be4f6,Bf6e8,Be8d6][%mdl 32]} 16. e4 {[%emt 0:01:49]} Rfd8 {[%emt 0:03:49]} 17. Be3 {[%emt 0:01:31]} Ne8 {[%emt 0:01:56]} 18. Rad1 {[%emt 0:07:49]} a6 {[%emt 0:07:53]} 19. Rd2 {[%emt 0:07:54]} f6 {[%emt 0:00:53]} 20. Rfd1 {[%emt 0:00:39]} Bf7 {[%emt 0:00:49]} 21. Qc3 {[%emt 0:09:33]} Nd6 {[%emt 0:06:28]} 22. Bc5 {[%emt 0:02:45]} b6 {[%emt 0:01:18]} 23. Be3 $36 {[%emt 0:01:16][%mdl 2048] White has the initiative.} b5 {[%emt 0:04:30]} 24. Bc5 {[%emt 0:03:16]} bxc4 {[%emt 0:02:00] [#]} 25. Bxc4 $1 {[%emt 0:00:33]} Bxc4 {[%emt 0:00:36]} 26. Bxd6 {[%emt 0:00:10]} cxd6 {[%emt 0:00:56]} ({Black should play} 26... Qf7 $14 27. Rc1 Bb5 28. Bxc7 (28. Qxc7 Qb3 $11) 28... Rxd2 29. Qxd2 Qe8 30. Qd5+ Kh8) 27. Qxc4+ {[%emt 0:00:05]} Kh8 {[%emt 0:00:48]} 28. Qc6 {[%emt 0:01:13]} Rdc8 {[%emt 0:00:47]} 29. Qxd6 {[%emt 0:01:07] White is much more active.} Qxd6 {[%emt 0:00:08]} (29... Qa7+ $16 30. Qc5 Qxc5+ 31. bxc5 Kg8) 30. Rxd6 {[%emt 0:00:06][%mdl 4096] Endgame. KRR-KRR} h5 {[%emt 0:00:20]} 31. Kf2 {[%emt 0:05:19]} Rc3 {[%emt 0:01:03]} 32. R1d3 {[%emt 0:01:20]} Rc2+ {[%emt 0:00:25]} 33. Rd2 {[%emt 0:01:09]} Rc3 {[%emt 0:00:29]} 34. R6d3 $1 {[%emt 0:01:23]} Rc4 {[%emt 0:00:38]} (34... Rc1 $142 35. Kg3 a5) 35. Rd8+ {[%emt 0:03:20]} Rxd8 {[%emt 0:00:04]} 36. Rxd8+ $18 {[%emt 0:00:08] KR-KR} Kh7 {[%emt 0:00:01]} 37. Ra8 {[%emt 0:03:12]} Rc2+ {[%emt 0:01:01]} (37... h4 $16) 38. Ke1 $2 {[%emt 0:00:58]} (38. Kg3 $18) 38... Rxg2 $11 {[%emt 0:00:46]} 39. Rxa6 {[%emt 0:00:04]} (39. h4 $11) 39... Rxh2 $15 {[%emt 0:00:13]} 40. b5 {[%emt 0:00:48]} Rb2 {[%emt 0:00:36]} 41. b6 {[%emt 0:31:08][%mdl 8192]} (41. a4 $11) 41... h4 $19 {[%emt 0:30:41]} 42. Kf1 {[%emt 0:00:43]} h3 {[%emt 0:00:00] ( -> ...h2)} 43. Kg1 {[%emt 0:00:00]} Kg6 {[%emt 0:00:00] White must now prevent ...Kg5.} 44. a4 {[%emt 0:00:00] [#]} Kg5 $1 {[%emt 0:00:00]} 45. Ra7 {[%emt 0:00:00]} Kf4 $2 {[%emt 0:00:00]} (45... Rxb6 $19 46. Rxg7+ Kf4) 46. Rxg7 $2 {[%emt 0:00:00][%mdl 8192]} (46. a5 $17 {nothing else works.} g5 (46... Kxf3 $2 47. Rxg7 h2+ 48. Kh1 $18) 47. Rd7) 46... Rxb6 {[%emt 0:00:00]} (46... Kxf3 $2 {perishes.} 47. a5 Rb1+ (47... Kxe4 $2 {is the wrong capture.} 48. b7 $18) 48. Kh2 Rb2+ (48... Kxe4 $2 49. b7 $18) 49. Kxh3 $18) 47. a5 {[%emt 0:00:00] [#]} Rb1+ {[%emt 0:00:00]} (47... Rd6 $1 $19 48. Kh2 Kxf3) 48. Kh2 $11 {[%emt 0:00:00] The position is equal.} Kxf3 {[%emt 0:00:00]} 49. Rg3+ {[%emt 0:00:00]} Kxe4 {[%emt 0:00:00]} 50. Ra3 {[%emt 0:00:00] Wards off Ra1} Rb7 {[%emt 0:00:00]} 51. a6 {[%emt 0:00:00]} Ra7 {[%emt 0:00:00]} 52. Kxh3 {[%emt 0:00:00]} Kf4 {[%emt 0:02:43]} 53. Kg2 {[%emt 0:00:00]} Ke4 {[%emt 0:01:25]} 54. Kf2 {[%emt 0:00:00]} Kd5 {[%emt 0:00:44]} 55. Ke3 {[%emt 0:00:00]} Kc5 {[%emt 0:01:23]} 56. Ke4 {[%emt 0:00:00]} Kb5 {[%emt 0:01:06]} 57. Rb3+ {[%emt 0:00:00]} Kxa6 {[%emt 0:00:49]} 58. Kf5 {[%emt 0:00:00]} Rf7 {[%emt 0:00:31]} (58... Rb7 $5 59. Ra3+ $8 Kb6 $11) 59. Ke6 {[%emt 0:00:00]} Rb7 {[%emt 0:00:28]} 60. Ra3+ {[%emt 0:00:12]} Kb5 {[%emt 0:00:27] ...Kb4 is the strong threat.} 61. Kxf6 {[%emt 0:00:17]} e4 {[%emt 0:00:36]} 62. Re3 {[%emt 0:00:16] Whites escaped into a draw.   Weighted Error Value: White=0.44/Black=0.28 (precise) .  Loses game:     	White=2     	---        Missed win:     	White=1     	Black=2      Mistake:       	White=1     	Black=5      Inaccurate:     	White=3     	Black=1      OK:         	White=26    	Black=14     Best:        	White=5     	Black=6      Strong:       	---       	Black=1} 1/2-1/2

[Event "Czech Youth U14 Boys 2024"]
[Site "Kouty nad Desnou"]
[Date "2024.03.15"]
[Round "8.4"]
[White "Krivka, Matej"]
[Black "Stara, Zuzana"]
[Result "1-0"]
[ECO "B12"]
[WhiteElo "1850"]
[BlackElo "1807"]
[Annotator "NA COMBH"]
[PlyCount "85"]
[EventDate "2024.03.10"]
[EventType "swiss"]
[EventCountry "CZE"]
[SourceTitle "playchess.com"]
[Source "ChessBase"]
[SourceQuality "1"]
[TimeControl "40/5400+30:1800+30"]

1. e4 {[%emt 0:00:04]} c6 {[%emt 0:00:03]} 2. d4 {[%emt 0:00:13]} d5 {[%emt 0:00:04]} 3. f3 e6 {[%emt 0:01:11]} 4. Nc3 {[%emt 0:01:21]} Nf6 {[%emt 0:01:48]} 5. Be3 {[%emt 0:01:24]} Nbd7 {[%emt 0:02:23]} 6. e5 {[%emt 0:02:24]} Ng8 {[%emt 0:00:11]} 7. f4 {[%emt 0:01:24]} Ne7 {[%emt 0:04:00]} 8. Nf3 {[%emt 0:02:06]} Nf5 {[%emt 0:01:18]} 9. Bf2 {[%emt 0:00:59]} a6 {[%emt 0:06:07]} 10. Bd3 {[%emt 0:02:11]} g6 {[%emt 0:10:51]} 11. O-O {[%emt 0:05:31]} c5 {[%emt 0:02:11]} 12. Bxf5 {[%emt 0:05:25]} gxf5 {[%emt 0:00:08]} 13. Ng5 {[%emt 0:02:27]} Be7 {[%emt 0:19:35]} 14. Qh5 {[%emt 0:10:18]} Bxg5 {[%emt 0:00:36]} 15. fxg5 {[%emt 0:00:41]} Nf8 {[%emt 0:05:53]} 16. Na4 {[%emt 0:06:15]} c4 {[%emt 0:04:58]} 17. b3 {[%emt 0:04:40]} Ng6 {[%emt 0:09:31]} 18. Be1 {[%emt 0:05:22]} Bd7 {[%emt 0:02:31]} 19. Bb4 {[%emt 0:05:32]} Bxa4 {[%emt 0:01:58]} 20. bxa4 {[%emt 0:00:10]} Qb6 {[%emt 0:08:21]} 21. Bc5 {[%emt 0:01:24]} Qc6 {[%emt 0:00:07]} 22. Bd6 {[%emt 0:04:26]} Qxa4 {[%emt 0:02:20]} 23. Rab1 {[%emt 0:05:28]} b5 {[%emt 0:06:14]} 24. Qe2 {[%emt 0:05:36]} Qa5 {[%emt 0:02:26]} 25. a4 {[%emt 0:04:14]} Qb6 {[%emt 0:01:20]} 26. Bc5 {[%emt 0:01:34]} Qc6 {[%emt 0:00:05]} 27. Rb4 {[%emt 0:04:31]} Kd7 {[%emt 0:01:30]} 28. g4 {[%emt 0:03:59]} f4 {[%emt 0:00:45]} 29. h4 {[%emt 0:01:02]} Nxh4 {[%emt 0:01:09]} 30. Rxf4 {[%emt 0:00:23]} Ke8 {[%emt 0:01:10]} 31. Qf2 {[%emt 0:00:58]} Ng6 {[%emt 0:00:56]} 32. Rxf7 {[%emt 0:00:38]} Rd8 {[%emt 0:00:31]} 33. Rb1 {[%emt 0:02:13]} Rd7 {[%emt 0:02:20]} 34. Rf1 {[%emt 0:01:04]} Kd8 {[%emt 0:00:50]} 35. axb5 {[%emt 0:03:44]} axb5 {[%emt 0:00:30]} 36. Ra1 {[%emt 0:02:00]} Re8 {[%emt 0:01:40]} 37. Rxd7+ {[%emt 0:02:19]} Kxd7 {[%emt 0:00:01]} 38. Qf7+ {[%emt 0:00:34]} Kc8 {[%emt 0:01:07]} 39. Ra7 {[%emt 0:02:09]} Rd8 {[%emt 0:00:42]} 40. Bd6 {[%emt 0:01:11]} Rxd6 {[%emt 0:00:29]} 41. exd6 {[%emt 0:30:28]} Kb8 {[%emt 0:00:56]} 42. d7 {[%emt 0:00:00]} Qb6 {[%emt 0:02:31]} 43. d8=Q+ {[%emt 0:00:00]} 1-0

[Event "Czech Youth U14 Boys 2024"]
[Site "Kouty nad Desnou"]
[Date "2024.03.15"]
[Round "8.5"]
[White "Sotek, Simon"]
[Black "Komarek, Tobias"]
[Result "1/2-1/2"]
[ECO "B10"]
[WhiteElo "1793"]
[BlackElo "1822"]
[Annotator "NA COMBH"]
[PlyCount "114"]
[EventDate "2024.03.10"]
[EventType "swiss"]
[EventCountry "CZE"]
[SourceTitle "playchess.com"]
[Source "ChessBase"]
[SourceQuality "1"]
[TimeControl "40/5400+30:1800+30"]

1. e4 {[%emt 0:00:03]} c6 {[%emt 0:00:08]} 2. c3 {[%emt 0:00:05]} d5 {[%emt 0:00:20]} 3. exd5 {[%emt 0:00:06]} cxd5 {[%emt 0:00:05]} 4. d4 {[%emt 0:00:05]} Qc7 {[%emt 0:01:19]} 5. Na3 {[%emt 0:04:32]} a6 {[%emt 0:04:58]} 6. Bd3 {[%emt 0:16:20]} Nc6 {[%emt 0:12:26]} 7. h3 {[%emt 0:08:47]} e6 {[%emt 0:06:49]} 8. Nc2 {[%emt 0:04:59]} Bd6 {[%emt 0:11:41]} 9. Nf3 {[%emt 0:03:06]} Bd7 {[%emt 0:01:03]} 10. Qe2 {[%emt 0:08:45]} Nf6 {[%emt 0:03:39]} 11. Bd2 {[%emt 0:03:41]} Na7 {[%emt 0:04:34]} 12. a4 Qb6 {[%emt 0:13:43]} 13. b4 {[%emt 0:16:13]} O-O {[%emt 0:02:04]} 14. O-O {[%emt 0:03:10]} Qc6 {[%emt 0:08:32]} 15. Ne5 {[%emt 0:03:48]} Bxe5 {[%emt 0:04:57]} 16. dxe5 {[%emt 0:00:53]} Ne8 {[%emt 0:01:17]} 17. b5 {[%emt 0:03:01]} Qc7 {[%emt 0:07:59]} 18. f4 {[%emt 0:03:26]} Nc8 {[%emt 0:05:32]} 19. bxa6 {[%emt 0:04:26]} bxa6 {[%emt 0:00:14]} 20. Kh1 {[%emt 0:00:27]} a5 {[%emt 0:02:50]} 21. Rf3 {[%emt 0:01:34]} g6 {[%emt 0:03:29]} 22. Rg3 {[%emt 0:03:15]} Ng7 {[%emt 0:00:33]} 23. Nd4 {[%emt 0:00:42]} Nb6 {[%emt 0:01:40]} 24. Nb5 {[%emt 0:07:04]} Bxb5 {[%emt 0:01:03]} 25. Bxb5 {[%emt 0:00:20]} Nc4 {[%emt 0:00:36]} 26. Bxc4 {[%emt 0:01:31]} Qxc4 {[%emt 0:00:08]} 27. Qxc4 {[%emt 0:02:47]} dxc4 {[%emt 0:00:01]} 28. Rf3 {[%emt 0:00:16]} Rfd8 {[%emt 0:00:43]} 29. Ra2 {[%emt 0:00:14]} Nf5 {[%emt 0:00:23]} 30. g4 {[%emt 0:00:10]} Ne7 {[%emt 0:00:10]} 31. f5 {[%emt 0:00:52]} exf5 {[%emt 0:00:50]} 32. Bg5 {[%emt 0:00:55]} Rd1+ {[%emt 0:00:43]} 33. Kg2 {[%emt 0:00:14]} fxg4 {[%emt 0:00:17]} 34. hxg4 {[%emt 0:00:04]} Nd5 {[%emt 0:00:41]} 35. Raf2 {[%emt 0:00:11]} Ra7 {[%emt 0:01:00]} 36. e6 {[%emt 0:00:08]} f6 {[%emt 0:00:37]} 37. Bxf6 {[%emt 0:00:23]} Nxf6 {[%emt 0:00:09]} 38. Rxf6 {[%emt 0:00:07]} Rd3 {[%emt 0:01:19]} 39. Rf8+ {[%emt 0:00:20]} Kg7 {[%emt 0:00:11]} 40. R8f7+ {[%emt 0:02:04]} Rxf7 {[%emt 0:00:06]} 41. Rxf7+ {[%emt 0:30:08]} Kg8 {[%emt 0:30:13]} 42. Rc7 {[%emt 0:00:06]} Re3 {[%emt 0:01:36]} 43. Rxc4 {[%emt 0:00:33]} Rxe6 {[%emt 0:00:05]} 44. Kf3 {[%emt 0:00:40]} Kf7 {[%emt 0:00:00]} 45. Rc5 {[%emt 0:00:00]} h6 {[%emt 0:00:00]} 46. c4 {[%emt 0:00:00]} Ra6 {[%emt 0:00:00]} 47. Ke4 {[%emt 0:00:00]} Ke6 {[%emt 0:00:00]} 48. Rc8 {[%emt 0:00:00]} Rb6 {[%emt 0:00:00]} 49. Rc5 {[%emt 0:00:00]} Rb4 {[%emt 0:00:00]} 50. Rxa5 {[%emt 0:00:00]} Rxc4+ {[%emt 0:00:00]} 51. Kf3 {[%emt 0:00:00]} h5 {[%emt 0:00:00]} 52. gxh5 {[%emt 0:00:00]} gxh5 {[%emt 0:00:00]} 53. Ra8 {[%emt 0:00:00]} Kd7 {[%emt 0:00:00]} 54. a5 {[%emt 0:00:00]} Kc7 {[%emt 0:00:00]} 55. Rh8 {[%emt 0:00:00]} Rc5 {[%emt 0:00:00]} 56. a6 {[%emt 0:00:00]} Kb6 {[%emt 0:00:00]} 57. Rh6+ {[%emt 0:00:00]} Ka7 1/2-1/2

[Event "Czech Youth U14 Boys 2024"]
[Site "Kouty nad Desnou"]
[Date "2024.03.15"]
[Round "8.6"]
[White "Kutil, Adam"]
[Black "Svadlenka, Michal"]
[Result "0-1"]
[ECO "B50"]
[WhiteElo "1820"]
[BlackElo "1869"]
[Annotator "NA COMBH"]
[PlyCount "90"]
[EventDate "2024.03.10"]
[EventType "swiss"]
[EventCountry "CZE"]
[SourceTitle "playchess.com"]
[Source "ChessBase"]
[SourceQuality "1"]
[TimeControl "40/5400+30:1800+30"]

1. e4 {[%emt 0:00:02]} c5 {[%emt 0:01:13]} 2. Nf3 {[%emt 0:00:15]} d6 {[%emt 0:00:18]} 3. c3 {[%emt 0:00:25]} Nf6 {[%emt 0:02:24]} 4. Bd3 {[%emt 0:00:49]} g6 {[%emt 0:01:17]} 5. Bc2 {[%emt 0:00:33]} Bg7 {[%emt 0:01:52]} 6. O-O {[%emt 0:02:59]} O-O {[%emt 0:02:02]} 7. h3 {[%emt 0:03:26]} b5 {[%emt 0:11:28]} 8. d4 {[%emt 0:09:25]} a5 {[%emt 0:05:20]} 9. Be3 {[%emt 0:06:32]} Qc7 {[%emt 0:03:00]} 10. Nbd2 {[%emt 0:05:18]} Nbd7 {[%emt 0:04:48]} 11. Nh2 {[%emt 0:15:57]} Ba6 {[%emt 0:03:28]} 12. f4 {[%emt 0:02:45]} b4 {[%emt 0:08:51]} 13. Rf2 {[%emt 0:01:09]} cxd4 {[%emt 0:06:14]} 14. cxd4 {[%emt 0:00:59]} Rfc8 {[%emt 0:03:27]} 15. Rc1 {[%emt 0:07:49]} Qb7 {[%emt 0:05:57]} 16. g4 {[%emt 0:06:33]} Nb6 {[%emt 0:06:18]} 17. g5 {[%emt 0:06:24]} Nfd7 {[%emt 0:01:12]} 18. Ng4 {[%emt 0:02:15]} e5 {[%emt 0:07:38]} 19. fxe5 {[%emt 0:02:35]} dxe5 {[%emt 0:00:41]} 20. d5 {[%emt 0:00:57]} Nc4 {[%emt 0:01:15]} 21. Nxc4 {[%emt 0:00:30]} Rxc4 {[%emt 0:02:39]} 22. Ba4 {[%emt 0:09:56]} Rxc1 {[%emt 0:04:04]} 23. Bxc1 {[%emt 0:00:23]} Qc7 {[%emt 0:01:48]} 24. Be3 {[%emt 0:01:27]} Qd6 {[%emt 0:03:40]} 25. Qf3 {[%emt 0:01:29]} Rf8 {[%emt 0:00:54]} 26. Bxd7 {[%emt 0:08:44]} Qxd7 {[%emt 0:00:28]} 27. Nf6+ {[%emt 0:01:48]} Bxf6 {[%emt 0:00:05]} 28. gxf6 {[%emt 0:00:27]} Rc8 {[%emt 0:03:10]} 29. h4 {[%emt 0:01:34]} h5 {[%emt 0:02:12]} 30. Rg2 {[%emt 0:00:45]} Qd6 {[%emt 0:02:27]} 31. Bh6 {[%emt 0:01:08]} Kh7 {[%emt 0:01:23]} 32. Bg7 {[%emt 0:00:36]} Qc5+ {[%emt 0:00:25]} 33. Kh2 {[%emt 0:00:09]} Qc1 {[%emt 0:00:25]} 34. Rg5 {[%emt 0:00:47]} Rc2+ {[%emt 0:00:20]} 35. Rg2 {[%emt 0:00:36]} Rxg2+ {[%emt 0:02:51]} 36. Qxg2 {[%emt 0:00:11]} Qf4+ {[%emt 0:00:07]} 37. Kh1 {[%emt 0:00:51]} Bd3 {[%emt 0:00:44]} 38. Qg5 {[%emt 0:00:29]} Qxe4+ {[%emt 0:01:33]} 39. Kh2 {[%emt 0:00:29]} Qe2+ {[%emt 0:00:40]} 40. Qg2 {[%emt 0:00:30]} Qe3 {[%emt 0:00:39]} 41. Qg5 {[%emt 0:30:23]} Qf2+ {[%emt 0:30:10]} 42. Qg2 {[%emt 0:00:00]} Qxh4+ {[%emt 0:00:00]} 43. Kg1 {[%emt 0:00:00]} Be4 {[%emt 0:00:00]} 44. Qe2 {[%emt 0:00:00]} Qg3+ {[%emt 0:00:00]} 45. Kf1 {[%emt 0:00:00]} Bd3 {[%emt 0:00:00]} 0-1